[Event "11th LCC Super Blitz 2019"]
[Site "London"]
[Date "2019.12.08"]
[Round "6.13"]
[White "Phillips, David"]
[Black "Caceres De La Calle, Eduardo"]
[Result "1-0"]
[ECO "A01"]
[WhiteElo "1810"]
[BlackElo "1575"]
[Annotator "NA"]
[PlyCount "41"]
[EventDate "2019.12.08"]
[EventType "swiss"]
[EventCountry "ENG"]
[SourceTitle "playchess.com"]
[Source "ChessBase"]
[SourceQuality "1"]
[TimeControl "180+2"]

1. b3 {[%emt 0:00:02]} e5 {[%emt 0:00:00]} 2. Bb2 {[%emt 0:00:01]} d5 {[%emt 0:00:01]} 3. Bxe5 {[%emt 0:00:05]} Bc5 {[%emt 0:00:03]} 4. Bxg7 {[%emt 0:00:27]} Qh4 {[%emt 0:00:32]} 5. g3 {[%emt 0:00:16]} Qe4 {[%emt 0:00:21]} 6. f3 {[%emt 0:00:05]} Qf5 {[%emt 0:00:20]} 7. Bxh8 {[%emt 0:00:08]} f6 {[%emt 0:00:11]} 8. Bh3 {[%emt 0:00:25]} Qe5 {[%emt 0:00:16]} 9. Bxc8 {[%emt 0:00:07]} Qxa1 {[%emt 0:00:20]} 10. Bxb7 {[%emt 0:00:09]} Qd4 {[%emt 0:00:07]} 11. e3 {[%emt 0:00:05]} Qe5 {[%emt 0:00:17]} 12. Bxa8 {[%emt 0:00:29]} c6 {[%emt 0:00:03]} 13. Ne2 {[%emt 0:00:22]} Nh6 {[%emt 0:00:21]} 14. O-O {[%emt 0:00:19]} Nf5 {[%emt 0:00:06]} 15. Nf4 {[%emt 0:00:07]} Nd7 {[%emt 0:00:17]} 16. Bxc6 {[%emt 0:00:02]} Ke7 {[%emt 0:00:08]} 17. Bxd5 {[%emt 0:00:05]} Nf8 {[%emt 0:00:06]} 18. Be4 {[%emt 0:00:03]} Nxg3 {[%emt 0:00:04]} 19. hxg3 {[%emt 0:00:05]} Ng6 {[%emt 0:00:02]} 20. Bxg6 {[%emt 0:00:05]} hxg6 {[%emt 0:00:01]} 21. Nxg6+ {[%emt 0:00:02]} 1-0

[Event "11th LCC Super Blitz 2019"]
[Site "London"]
[Date "2019.12.08"]
[Round "7.1"]
[White "Roberson, Peter T"]
[Black "Howell, David Wl"]
[Result "1-0"]
[ECO "B42"]
[WhiteElo "2282"]
[BlackElo "2650"]
[Annotator "ChessBase"]
[PlyCount "43"]
[EventDate "2019.12.08"]
[EventType "swiss"]
[EventCountry "ENG"]
[SourceTitle "playchess.com"]
[Source "ChessBase"]
[SourceQuality "1"]
[TimeControl "180+2"]

1. e4 {[%emt 0:00:00]} c5 {[%emt 0:00:00]} 2. Nf3 {[%emt 0:00:00]} e6 {[%emt 0:00:00]} 3. d4 {[%emt 0:00:02]} cxd4 {[%emt 0:00:00]} 4. Nxd4 {[%emt 0:00:01]} Nf6 {[%emt 0:00:00]} 5. Bd3 {[%emt 0:00:02]} d6 {[%emt 0:00:00]} 6. c4 {[%emt 0:00:02]} Nc6 {[%emt 0:00:02]} 7. Nc2 {[%emt 0:00:02]} Be7 {[%emt 0:00:04]} 8. Nc3 {[%emt 0:00:01]} O-O {[%emt 0:00:02]} 9. O-O {[%emt 0:00:01]} a6 {[%emt 0:00:03]} 10. b3 {[%emt 0:00:03]} Bd7 {[%emt 0:00:02]} 11. Bb2 {[%emt 0:00:01]} Rb8 {[%emt 0:00:00]} 12. a4 {[%emt 0:00:02]} Qc7 {[%emt 0:00:13]} 13. Rc1 {[%emt 0:00:01]} Na5 {[%emt 0:00:01]} 14. Ne3 {[%emt 0:00:05]} Qc8 {[%emt 0:00:29]} 15. b4 {[%emt 0:00:15]} Nc6 {[%emt 0:00:01]} 16. Ba3 {[%emt 0:00:05]} a5 {[%emt 0:00:05]} 17. bxa5 {[%emt 0:00:10]} Nxa5 {[%emt 0:00:03]} 18. Nb5 {[%emt 0:00:01]} Qc6 {[%emt 0:00:06]} 19. e5 {[%emt 0:00:02]} Ne8 {[%emt 0:00:08]} 20. exd6 {[%emt 0:00:18]} Nxd6 {[%emt 0:00:01]} 21. Nxd6 {[%emt 0:00:02]} Bxd6 {[%emt 0:00:02]} 22. Bxd6 {[%emt 0:00:01]} 1-0

[Event "11th LCC Super Blitz 2019"]
[Site "London"]
[Date "2019.12.08"]
[Round "7.2"]
[White "Grover, Sahaj"]
[Black "Rushbrooke, Remy"]
[Result "0-1"]
[ECO "E71"]
[WhiteElo "2486"]
[BlackElo "1877"]
[Annotator "ChessBase"]
[PlyCount "62"]
[EventDate "2019.12.08"]
[EventType "swiss"]
[EventCountry "ENG"]
[SourceTitle "playchess.com"]
[Source "ChessBase"]
[SourceQuality "1"]
[TimeControl "180+2"]

1. d4 {[%emt 0:00:00]} Nf6 {[%emt 0:00:00]} 2. c4 {[%emt 0:00:00]} c5 {[%emt 0:00:03]} 3. d5 g6 {[%emt 0:00:05]} 4. Nc3 Bg7 {[%emt 0:00:01]} 5. e4 {[%emt 0:00:03]} d6 {[%emt 0:00:03]} 6. h3 {[%emt 0:00:03]} a6 {[%emt 0:00:04]} 7. a4 {[%emt 0:00:05]} O-O {[%emt 0:00:05]} 8. Bd3 e6 {[%emt 0:00:02]} 9. Nf3 {[%emt 0:00:01]} Nbd7 {[%emt 0:00:03]} 10. Bg5 {[%emt 0:00:04]} h6 {[%emt 0:00:14]} 11. Be3 {[%emt 0:00:03]} Qe7 {[%emt 0:00:05]} 12. Qd2 {[%emt 0:00:09]} exd5 {[%emt 0:00:13]} 13. exd5 {[%emt 0:00:25]} Ne5 {[%emt 0:00:03]} 14. Nxe5 Qxe5 {[%emt 0:00:01]} 15. O-O {[%emt 0:00:07]} Qh5 {[%emt 0:00:22]} 16. Bf4 {[%emt 0:00:36]} Rd8 {[%emt 0:00:08]} 17. Rae1 {[%emt 0:00:07]} g5 {[%emt 0:00:05]} 18. Bg3 {[%emt 0:00:12]} g4 {[%emt 0:00:04]} 19. h4 {[%emt 0:00:14]} Bf5 {[%emt 0:00:05]} 20. Re7 {[%emt 0:00:16]} b6 {[%emt 0:00:18]} 21. Ne2 {[%emt 0:00:03]} Qg6 {[%emt 0:00:11]} 22. Nf4 {[%emt 0:00:10]} Qh7 {[%emt 0:00:01]} 23. Rfe1 {[%emt 0:00:09]} Bxd3 {[%emt 0:00:06]} 24. Qxd3 {[%emt 0:00:21]} Qxd3 {[%emt 0:00:02]} 25. Nxd3 {[%emt 0:00:01]} b5 {[%emt 0:00:00]} 26. b3 {[%emt 0:00:14]} bxc4 {[%emt 0:00:04]} 27. bxc4 {[%emt 0:00:01]} Rab8 {[%emt 0:00:05]} 28. Ra7 {[%emt 0:00:04]} Rb3 {[%emt 0:00:02]} 29. Re3 {[%emt 0:00:10]} Nh5 {[%emt 0:00:04]} 30. Ne1 {[%emt 0:00:14]} Rxe3 {[%emt 0:00:02]} 31. fxe3 {[%emt 0:00:02]} Nxg3 {[%emt 0:00:05]} 0-1

[Event "11th LCC Super Blitz 2019"]
[Site "London"]
[Date "2019.12.08"]
[Round "7.3"]
[White "Cox, John J"]
[Black "Aravindh, Chithambaram Vr"]
[Result "0-1"]
[ECO "B10"]
[WhiteElo "2346"]
[BlackElo "2560"]
[Annotator "ChessBase"]
[PlyCount "62"]
[EventDate "2019.12.08"]
[EventType "swiss"]
[EventCountry "ENG"]
[SourceTitle "playchess.com"]
[Source "ChessBase"]
[SourceQuality "1"]
[TimeControl "180+2"]

1. e4 {[%emt 0:00:47]} c6 2. b3 {[%emt 0:00:07]} d5 {[%emt 0:00:02]} 3. Bb2 dxe4 {[%emt 0:00:13]} 4. Nc3 Nf6 {[%emt 0:00:01]} 5. Nge2 {[%emt 0:00:01]} Bf5 {[%emt 0:00:08]} 6. Ng3 {[%emt 0:00:01]} e6 {[%emt 0:00:07]} 7. Qe2 {[%emt 0:00:10]} Bb4 {[%emt 0:00:08]} 8. O-O-O {[%emt 0:00:17]} Bxc3 {[%emt 0:00:30]} 9. Bxc3 {[%emt 0:00:21]} O-O {[%emt 0:00:06]} 10. Kb1 {[%emt 0:00:16]} Nbd7 {[%emt 0:00:07]} 11. Nxf5 {[%emt 0:00:12]} exf5 {[%emt 0:00:01]} 12. d3 {[%emt 0:00:01]} Re8 {[%emt 0:00:10]} 13. dxe4 {[%emt 0:00:13]} Nxe4 {[%emt 0:00:07]} 14. Qf3 {[%emt 0:00:19]} Nxc3+ {[%emt 0:00:08]} 15. Qxc3 {[%emt 0:00:02]} Qf6 {[%emt 0:00:02]} 16. Qxf6 {[%emt 0:00:10]} Nxf6 {[%emt 0:00:01]} 17. Bd3 {[%emt 0:00:02]} g6 {[%emt 0:00:04]} 18. f3 {[%emt 0:00:09]} Nd5 {[%emt 0:00:04]} 19. Kb2 {[%emt 0:00:07]} Re7 {[%emt 0:00:05]} 20. Bc4 {[%emt 0:00:07]} Ne3 {[%emt 0:00:09]} 21. Rd2 {[%emt 0:00:02]} Rae8 {[%emt 0:00:09]} 22. a4 {[%emt 0:00:07]} a5 {[%emt 0:00:02]} 23. Kc3 {[%emt 0:00:21]} f4 {[%emt 0:00:04]} 24. Rg1 {[%emt 0:00:09]} Kg7 {[%emt 0:00:02]} 25. g3 {[%emt 0:00:05]} fxg3 {[%emt 0:00:01]} 26. hxg3 {[%emt 0:00:04]} Nf5 {[%emt 0:00:09]} 27. g4 {[%emt 0:00:06]} Re3+ {[%emt 0:00:02]} 28. Kb2 {[%emt 0:00:08]} Nh4 {[%emt 0:00:02]} 29. f4 {[%emt 0:00:03]} Nf3 {[%emt 0:00:02]} 30. Rd7 {[%emt 0:00:06]} Nxg1 {[%emt 0:00:03]} 31. Rxf7+ {[%emt 0:00:02]} Kh8 0-1

[Event "11th LCC Super Blitz 2019"]
[Site "London"]
[Date "2019.12.08"]
[Round "7.3"]
[White "Klingher, Dominic"]
[Black "Petrov, Vladimir Sergeev"]
[Result "1-0"]
[ECO "B23"]
[WhiteElo "2071"]
[BlackElo "2355"]
[Annotator "NA"]
[PlyCount "57"]
[EventDate "2019.12.08"]
[EventType "swiss"]
[EventCountry "ENG"]
[SourceTitle "playchess.com"]
[Source "ChessBase"]
[SourceQuality "1"]
[TimeControl "180+2"]

1. e4 {[%emt 0:00:00]} c5 {[%emt 0:00:00]} 2. Nc3 {[%emt 0:00:01]} d6 {[%emt 0:00:03]} 3. f4 {[%emt 0:00:01]} Nc6 {[%emt 0:00:02]} 4. Nf3 {[%emt 0:00:02]} g6 {[%emt 0:00:03]} 5. Bc4 {[%emt 0:00:01]} Bg7 {[%emt 0:00:02]} 6. O-O {[%emt 0:00:02]} e6 {[%emt 0:00:04]} 7. d3 {[%emt 0:00:01]} Nge7 {[%emt 0:00:01]} 8. Qe1 {[%emt 0:00:02]} O-O {[%emt 0:00:08]} 9. Qh4 {[%emt 0:00:03]} Qd7 {[%emt 0:00:21]} 10. f5 {[%emt 0:00:06]} gxf5 {[%emt 0:00:12]} 11. Bh6 {[%emt 0:00:06]} Ng6 {[%emt 0:00:05]} 12. Qh5 {[%emt 0:00:02]} fxe4 {[%emt 0:00:12]} 13. Ng5 {[%emt 0:00:16]} Bd4+ {[%emt 0:00:36]} 14. Kh1 {[%emt 0:00:04]} Nce5 {[%emt 0:00:27]} 15. Bxf8 {[%emt 0:00:09]} Nxf8 {[%emt 0:00:04]} 16. Ncxe4 {[%emt 0:00:10]} Neg6 {[%emt 0:00:18]} 17. Rxf7 {[%emt 0:00:18]} Qxf7 {[%emt 0:00:03]} 18. Nxf7 Kxf7 {[%emt 0:00:01]} 19. Rf1+ {[%emt 0:00:16]} Kg7 {[%emt 0:00:03]} 20. Nxd6 {[%emt 0:00:13]} Bd7 {[%emt 0:00:13]} 21. Rf7+ {[%emt 0:00:06]} Kg8 {[%emt 0:00:02]} 22. Rxh7 {[%emt 0:00:11]} Nxh7 {[%emt 0:00:04]} 23. Qxg6+ {[%emt 0:00:02]} Bg7 {[%emt 0:00:02]} 24. Qf7+ {[%emt 0:00:05]} Kh8 {[%emt 0:00:01]} 25. Qxd7 {[%emt 0:00:02]} Rf8 {[%emt 0:00:06]} 26. Nf7+ {[%emt 0:00:02]} Kg8 {[%emt 0:00:02]} 27. Qxe6 {[%emt 0:00:08]} Nf6 {[%emt 0:00:09]} 28. Ng5+ {[%emt 0:00:05]} Kh8 {[%emt 0:00:02]} 29. Qh3+ {[%emt 0:00:01]} 1-0

[Event "11th LCC Super Blitz 2019"]
[Site "London"]
[Date "2019.12.08"]
[Round "7.4"]
[White "Van Zyl-Rudd, Jack"]
[Black "Mortazavi, Ali"]
[Result "1-0"]
[ECO "E90"]
[WhiteElo "2290"]
[BlackElo "2333"]
[Annotator "NA"]
[PlyCount "65"]
[EventDate "2019.12.08"]
[EventType "swiss"]
[EventCountry "ENG"]
[SourceTitle "playchess.com"]
[Source "ChessBase"]
[SourceQuality "1"]
[TimeControl "180+2"]

1. d4 {[%emt 0:00:00]} Nf6 {[%emt 0:00:00]} 2. c4 {[%emt 0:00:01]} g6 {[%emt 0:00:00]} 3. Nc3 {[%emt 0:00:01]} Bg7 4. e4 {[%emt 0:00:03]} O-O {[%emt 0:00:03]} 5. h3 {[%emt 0:00:00]} d6 {[%emt 0:00:00]} 6. Be3 {[%emt 0:00:02]} c5 {[%emt 0:00:02]} 7. Nf3 {[%emt 0:00:01]} Na6 {[%emt 0:00:12]} 8. Be2 {[%emt 0:00:16]} b6 {[%emt 0:00:24]} 9. O-O {[%emt 0:00:05]} Bb7 {[%emt 0:00:04]} 10. d5 {[%emt 0:00:11]} Nc7 {[%emt 0:00:01]} 11. a4 {[%emt 0:00:04]} e5 {[%emt 0:00:11]} 12. dxe6 {[%emt 0:00:21]} Nxe6 {[%emt 0:00:14]} 13. Qc2 {[%emt 0:00:05]} Qe7 {[%emt 0:00:03]} 14. Rad1 {[%emt 0:00:03]} Nd7 {[%emt 0:00:09]} 15. Nb5 {[%emt 0:00:14]} Nd4 {[%emt 0:00:15]} 16. Nbxd4 {[%emt 0:00:12]} cxd4 {[%emt 0:00:08]} 17. Nxd4 {[%emt 0:00:09]} Bxe4 {[%emt 0:00:01]} 18. Qd2 {[%emt 0:00:30]} Nc5 {[%emt 0:00:15]} 19. b4 {[%emt 0:00:26]} Nb7 {[%emt 0:00:24]} 20. Nb5 {[%emt 0:00:02]} Rfd8 {[%emt 0:00:01]} 21. Bg5 {[%emt 0:00:05]} Bf6 {[%emt 0:00:02]} 22. Bxf6 {[%emt 0:00:04]} Qxf6 {[%emt 0:00:00]} 23. Nc7 {[%emt 0:00:04]} Rac8 {[%emt 0:00:03]} 24. Nd5 {[%emt 0:00:03]} Qh4 {[%emt 0:00:15]} 25. Qd4 {[%emt 0:00:17]} Re8 {[%emt 0:00:39]} 26. Nf6+ {[%emt 0:00:10]} Kf8 {[%emt 0:00:03]} 27. Nxe8 Rxe8 {[%emt 0:00:01]} 28. f3 {[%emt 0:00:04]} Kg8 {[%emt 0:00:09]} 29. fxe4 Rxe4 {[%emt 0:00:00]} 30. Qf2 {[%emt 0:00:02]} f5 {[%emt 0:00:05]} 31. Bf3 {[%emt 0:00:02]} Qxf2+ {[%emt 0:00:08]} 32. Rxf2 {[%emt 0:00:01]} Rxc4 {[%emt 0:00:01]} 33. Bd5+ {[%emt 0:00:00]} 1-0

[Event "11th LCC Super Blitz 2019"]
[Site "London"]
[Date "2019.12.08"]
[Round "7.4"]
[White "Toh, Q Kane"]
[Black "Beinoras, Mindaugas"]
[Result "0-1"]
[ECO "E60"]
[WhiteElo "1606"]
[BlackElo "2401"]
[Annotator "NA"]
[PlyCount "44"]
[EventDate "2019.12.08"]
[EventType "swiss"]
[EventCountry "ENG"]
[SourceTitle "playchess.com"]
[Source "ChessBase"]
[SourceQuality "1"]
[TimeControl "180+2"]

1. d4 {[%emt 0:00:00]} Nf6 {[%emt 0:00:00]} 2. c4 {[%emt 0:00:02]} g6 {[%emt 0:00:00]} 3. f3 {[%emt 0:00:01]} e6 {[%emt 0:00:02]} 4. e4 {[%emt 0:00:04]} d5 {[%emt 0:00:00]} 5. e5 {[%emt 0:00:09]} Nh5 {[%emt 0:00:01]} 6. Be3 {[%emt 0:00:02]} c5 {[%emt 0:00:18]} 7. dxc5 {[%emt 0:00:13]} Nc6 {[%emt 0:00:01]} 8. Nc3 {[%emt 0:00:06]} d4 {[%emt 0:00:01]} 9. Bf2 {[%emt 0:00:15]} dxc3 {[%emt 0:00:02]} 10. bxc3 {[%emt 0:00:02]} Qxd1+ {[%emt 0:00:03]} 11. Rxd1 {[%emt 0:00:02]} Bg7 {[%emt 0:00:02]} 12. Bd4 {[%emt 0:00:05]} Bxe5 {[%emt 0:00:03]} 13. Ne2 {[%emt 0:00:04]} O-O {[%emt 0:00:05]} 14. Bxe5 {[%emt 0:00:10]} Nxe5 {[%emt 0:00:01]} 15. Nd4 {[%emt 0:00:02]} Bd7 {[%emt 0:00:06]} 16. g3 {[%emt 0:00:22]} Ba4 {[%emt 0:00:11]} 17. Rb1 {[%emt 0:00:08]} Rac8 {[%emt 0:00:01]} 18. Nb3 {[%emt 0:00:07]} Nxf3+ {[%emt 0:00:03]} 19. Kf2 {[%emt 0:00:05]} Ne5 {[%emt 0:00:01]} 20. Be2 {[%emt 0:00:05]} Nf6 {[%emt 0:00:01]} 21. Bf3 {[%emt 0:00:13]} Nxf3 {[%emt 0:00:01]} 22. Kxf3 {[%emt 0:00:01]} Bc6+ {[%emt 0:00:01]} 0-1

[Event "11th LCC Super Blitz 2019"]
[Site "London"]
[Date "2019.12.08"]
[Round "7.5"]
[White "Stoyanov, Viktor"]
[Black "Eames, Robert S"]
[Result "1-0"]
[ECO "E09"]
[WhiteElo "2191"]
[BlackElo "2166"]
[Annotator "NA"]
[PlyCount "87"]
[EventDate "2019.12.08"]
[EventType "swiss"]
[EventCountry "ENG"]
[SourceTitle "playchess.com"]
[Source "ChessBase"]
[SourceQuality "1"]
[TimeControl "180+2"]

1. d4 {[%emt 0:00:00]} d5 {[%emt 0:00:00]} 2. c4 {[%emt 0:00:00]} e6 {[%emt 0:00:00]} 3. Nf3 {[%emt 0:00:01]} Nf6 {[%emt 0:00:01]} 4. g3 {[%emt 0:00:01]} c6 {[%emt 0:00:02]} 5. Bg2 {[%emt 0:00:01]} Bd6 {[%emt 0:00:02]} 6. O-O {[%emt 0:00:02]} O-O {[%emt 0:00:02]} 7. Qc2 {[%emt 0:00:01]} Nbd7 {[%emt 0:00:10]} 8. Nbd2 {[%emt 0:00:01]} b6 {[%emt 0:00:09]} 9. e4 {[%emt 0:00:01]} dxe4 {[%emt 0:00:06]} 10. Nxe4 {[%emt 0:00:01]} Be7 {[%emt 0:00:22]} 11. b3 {[%emt 0:00:05]} Bb7 {[%emt 0:00:03]} 12. Bb2 {[%emt 0:00:05]} Nxe4 {[%emt 0:00:02]} 13. Qxe4 {[%emt 0:00:02]} Nf6 {[%emt 0:00:01]} 14. Qc2 {[%emt 0:00:00]} Qc7 {[%emt 0:00:03]} 15. Rad1 {[%emt 0:00:10]} Rad8 {[%emt 0:00:02]} 16. Rfe1 {[%emt 0:00:07]} c5 {[%emt 0:00:17]} 17. dxc5 {[%emt 0:00:16]} bxc5 {[%emt 0:00:02]} 18. Be5 {[%emt 0:00:06]} Qb6 {[%emt 0:00:11]} 19. Ng5 {[%emt 0:00:18]} g6 {[%emt 0:00:26]} 20. Nf3 {[%emt 0:00:01]} Rxd1 {[%emt 0:00:32]} 21. Rxd1 {[%emt 0:00:02]} Rd8 {[%emt 0:00:10]} 22. Rxd8+ {[%emt 0:00:01]} Qxd8 {[%emt 0:00:02]} 23. h3 {[%emt 0:00:01]} Be4 {[%emt 0:00:09]} 24. Qd2 {[%emt 0:00:10]} Qa8 {[%emt 0:00:09]} 25. Ne1 {[%emt 0:00:21]} Bxg2 {[%emt 0:00:03]} 26. Nxg2 {[%emt 0:00:01]} Qe4 {[%emt 0:00:06]} 27. Qc3 {[%emt 0:00:14]} Qb1+ {[%emt 0:00:21]} 28. Kh2 {[%emt 0:00:02]} Ne4 {[%emt 0:00:01]} 29. Qf3 {[%emt 0:00:20]} f6 {[%emt 0:00:04]} 30. Bf4 {[%emt 0:00:08]} f5 {[%emt 0:00:13]} 31. Qe2 {[%emt 0:00:11]} Kf7 {[%emt 0:00:05]} 32. Be3 {[%emt 0:00:06]} Nc3 {[%emt 0:00:00]} 33. Qd2 {[%emt 0:00:12]} Nxa2 {[%emt 0:00:05]} 34. Nf4 {[%emt 0:00:04]} Nb4 {[%emt 0:00:03]} 35. Qd7 {[%emt 0:00:07]} Qe4 {[%emt 0:00:01]} 36. Bxc5 {[%emt 0:00:02]} Nc6 {[%emt 0:00:02]} 37. Bxe7 {[%emt 0:00:05]} Nxe7 {[%emt 0:00:01]} 38. Qxa7 {[%emt 0:00:02]} Qf3 {[%emt 0:00:02]} 39. Qe3 {[%emt 0:00:05]} Qb7 {[%emt 0:00:01]} 40. Qxe6+ {[%emt 0:00:12] Nc6 Qe3} Kg7 {[%emt 0:00:04]} 41. Nd5 {[%emt 0:00:06] Kg8 Qc3 Nd8 b4} Qa7 {[%emt 0:00:01]} 42. Qe3 {[%emt 0:00:01]} Qd7 {[%emt 0:00:01]} 43. Nf6 {[%emt 0:00:01]} Kf7 {[%emt 0:00:01]} 44. Nxd7 {[%emt 0:00:00] Ne6 Ne5+} 1-0

[Event "11th LCC Super Blitz 2019"]
[Site "London"]
[Date "2019.12.08"]
[Round "7.5"]
[White "Young, Daniel J"]
[Black "Rishi, Thariani"]
[Result "0-1"]
[ECO "A14"]
[WhiteElo "1947"]
[BlackElo "2008"]
[Annotator "NA"]
[PlyCount "50"]
[EventDate "2019.12.08"]
[EventType "swiss"]
[EventCountry "ENG"]
[SourceTitle "playchess.com"]
[Source "ChessBase"]
[SourceQuality "1"]
[TimeControl "180+2"]

1. Nf3 {[%emt 0:00:00]} d5 {[%emt 0:00:00]} 2. c4 {[%emt 0:00:00]} e6 {[%emt 0:00:01]} 3. g3 {[%emt 0:00:01]} Nf6 {[%emt 0:00:03]} 4. Bg2 {[%emt 0:00:01]} c6 {[%emt 0:00:03]} 5. O-O {[%emt 0:00:02]} Be7 {[%emt 0:00:01]} 6. b3 {[%emt 0:00:01]} O-O {[%emt 0:00:01]} 7. Bb2 {[%emt 0:00:00]} Nbd7 {[%emt 0:00:01]} 8. e3 {[%emt 0:00:03]} a5 {[%emt 0:00:05]} 9. Nc3 {[%emt 0:00:03]} b6 {[%emt 0:00:04]} 10. d3 {[%emt 0:00:10]} Bb7 {[%emt 0:00:04]} 11. Qe2 {[%emt 0:00:01]} Qc7 {[%emt 0:00:02]} 12. cxd5 {[%emt 0:00:10]} exd5 {[%emt 0:00:09]} 13. Rac1 {[%emt 0:00:13]} Rac8 {[%emt 0:00:08]} 14. Nd4 {[%emt 0:00:07]} Nc5 {[%emt 0:00:42]} 15. Nf5 {[%emt 0:00:10]} Rfe8 {[%emt 0:00:01]} 16. Nxe7+ {[%emt 0:00:05]} Qxe7 {[%emt 0:00:02]} 17. Qd2 {[%emt 0:00:17]} Ne6 {[%emt 0:00:10]} 18. Ne2 {[%emt 0:00:05]} c5 {[%emt 0:00:04]} 19. d4 {[%emt 0:00:18]} c4 {[%emt 0:00:12]} 20. bxc4 {[%emt 0:00:05]} dxc4 {[%emt 0:00:01]} 21. Bxb7 Qxb7 {[%emt 0:00:01]} 22. a4 {[%emt 0:00:20]} Ng5 {[%emt 0:00:01]} 23. f3 {[%emt 0:00:43]} Nxf3+ {[%emt 0:00:02]} 24. Rxf3 {[%emt 0:00:01]} Qxf3 {[%emt 0:00:02]} 25. Rc3 {[%emt 0:00:13]} Ne4 {[%emt 0:00:01]} 0-1

[Event "11th LCC Super Blitz 2019"]
[Site "London"]
[Date "2019.12.08"]
[Round "7.6"]
[White "Willow, Jonah B"]
[Black "Saidmurodov, Shahjahon"]
[Result "1-0"]
[ECO "C46"]
[WhiteElo "2355"]
[BlackElo "1812"]
[Annotator "NA"]
[PlyCount "149"]
[EventDate "2019.12.08"]
[EventType "swiss"]
[EventCountry "ENG"]
[SourceTitle "playchess.com"]
[Source "ChessBase"]
[SourceQuality "1"]
[TimeControl "180+2"]

1. e4 {[%emt 0:00:00]} e5 {[%emt 0:00:00]} 2. Nf3 {[%emt 0:00:03]} Nc6 {[%emt 0:00:00]} 3. Nc3 {[%emt 0:00:01]} Bc5 {[%emt 0:00:05]} 4. Nxe5 {[%emt 0:00:01]} Bxf2+ {[%emt 0:00:07]} 5. Kxf2 {[%emt 0:00:01]} Nxe5 {[%emt 0:00:00]} 6. d4 {[%emt 0:00:01]} Ng6 {[%emt 0:00:02]} 7. Bc4 {[%emt 0:00:04]} d6 {[%emt 0:00:04]} 8. Rf1 {[%emt 0:00:04]} Nf6 {[%emt 0:00:02]} 9. Kg1 {[%emt 0:00:02]} Be6 {[%emt 0:00:12]} 10. Bd3 {[%emt 0:00:24]} c6 {[%emt 0:00:17]} 11. Bg5 {[%emt 0:00:05]} Qd7 {[%emt 0:00:48]} 12. Bxf6 {[%emt 0:00:06]} gxf6 {[%emt 0:00:01]} 13. d5 {[%emt 0:00:10]} Bg4 {[%emt 0:00:02]} 14. Qe1 {[%emt 0:00:08]} Ne5 {[%emt 0:00:13]} 15. Qh4 {[%emt 0:00:16]} Rg8 {[%emt 0:00:38]} 16. Kh1 {[%emt 0:00:09]} O-O-O {[%emt 0:00:05]} 17. h3 {[%emt 0:00:24]} h5 {[%emt 0:00:05]} 18. hxg4 {[%emt 0:00:07]} hxg4 {[%emt 0:00:08]} 19. Kg1 {[%emt 0:00:05]} Rh8 {[%emt 0:00:24]} 20. Qg3 {[%emt 0:00:06]} Rdg8 {[%emt 0:00:04]} 21. Be2 {[%emt 0:00:08]} Qd8 {[%emt 0:00:08]} 22. Kf2 {[%emt 0:00:39]} Qb6+ {[%emt 0:00:07]} 23. Ke1 {[%emt 0:00:01]} Qxb2 {[%emt 0:00:06]} 24. Kd2 {[%emt 0:00:03]} cxd5 {[%emt 0:00:05]} 25. exd5 {[%emt 0:00:18]} Re8 {[%emt 0:00:02]} 26. Rab1 {[%emt 0:00:17]} Qa3 {[%emt 0:00:01]} 27. Rb3 {[%emt 0:00:02]} Qc5 {[%emt 0:00:02]} 28. Qf2 {[%emt 0:00:03]} Qa5 {[%emt 0:00:04]} 29. Qd4 {[%emt 0:00:04]} Nd7 {[%emt 0:00:04]} 30. Qc4+ {[%emt 0:00:01]} Kb8 {[%emt 0:00:00]} 31. Qb5 {[%emt 0:00:03]} Qxb5 {[%emt 0:00:01]} 32. Nxb5 {[%emt 0:00:01]} Nc5 33. Re3 Rxe3 {[%emt 0:00:04]} 34. Kxe3 {[%emt 0:00:02]} Re8+ 35. Kd2 {[%emt 0:00:01]} Ne4+ {[%emt 0:00:02]} 36. Kc1 {[%emt 0:00:02]} a6 {[%emt 0:00:01]} 37. Nd4 {[%emt 0:00:02]} g3 {[%emt 0:00:03]} 38. Bf3 {[%emt 0:00:03]} Ng5 {[%emt 0:00:05]} 39. Kd2 {[%emt 0:00:02]} Re5 {[%emt 0:00:02]} 40. c4 {[%emt 0:00:01]} Kc7 {[%emt 0:00:01]} 41. Kd3 {[%emt 0:00:02]} f5 {[%emt 0:00:01]} 42. Be2 {[%emt 0:00:02]} Kd7 {[%emt 0:00:01]} 43. Rxf5 {[%emt 0:00:02]} Rxf5 {[%emt 0:00:03]} 44. Nxf5 {[%emt 0:00:00]} Nh7 {[%emt 0:00:02]} 45. Bg4 {[%emt 0:00:02]} Nf6 {[%emt 0:00:02]} 46. Bf3 {[%emt 0:00:01]} Kc7 {[%emt 0:00:02]} 47. Nxg3 {[%emt 0:00:01]} b5 {[%emt 0:00:01]} 48. Ne4 {[%emt 0:00:01]} Nd7 {[%emt 0:00:05]} 49. cxb5 {[%emt 0:00:03]} Ne5+ {[%emt 0:00:01]} 50. Kd4 {[%emt 0:00:01]} axb5 {[%emt 0:00:01]} 51. Nc3 {[%emt 0:00:01]} Kb6 {[%emt 0:00:00]} 52. Be2 {[%emt 0:00:01]} b4 {[%emt 0:00:02]} 53. Ne4 {[%emt 0:00:01]} Kc7 {[%emt 0:00:02]} 54. Ng5 {[%emt 0:00:05]} f5 {[%emt 0:00:04]} 55. Ne6+ {[%emt 0:00:01]} Kd7 {[%emt 0:00:04]} 56. Ng7 {[%emt 0:00:01]} f4 {[%emt 0:00:01]} 57. Ne6 {[%emt 0:00:02]} Ke7 {[%emt 0:00:04]} 58. Nxf4 {[%emt 0:00:01]} Kd7 {[%emt 0:00:01]} 59. g4 {[%emt 0:00:01]} Ke7 {[%emt 0:00:00]} 60. g5 {[%emt 0:00:01]} Kf7 {[%emt 0:00:01]} 61. Bh5+ {[%emt 0:00:05]} Ke7 {[%emt 0:00:01]} 62. Ng6+ {[%emt 0:00:01]} Nxg6 {[%emt 0:00:03]} 63. Bxg6 {[%emt 0:00:01]} b3 {[%emt 0:00:00]} 64. axb3 {[%emt 0:00:01]} Kf8 {[%emt 0:00:00]} 65. b4 {[%emt 0:00:02]} Ke7 {[%emt 0:00:01]} 66. b5 {[%emt 0:00:01]} Kd8 {[%emt 0:00:00]} 67. Bf7 {[%emt 0:00:02]} Kd7 {[%emt 0:00:02]} 68. g6 {[%emt 0:00:01]} Ke7 {[%emt 0:00:01]} 69. b6 {[%emt 0:00:01]} Kf8 {[%emt 0:00:01]} 70. b7 {[%emt 0:00:01]} Kg7 {[%emt 0:00:01]} 71. b8=Q {[%emt 0:00:02]} Kh6 {[%emt 0:00:01]} 72. Qh8+ {[%emt 0:00:02]} Kg5 {[%emt 0:00:00]} 73. g7 {[%emt 0:00:01]} Kf5 {[%emt 0:00:01]} 74. g8=Q {[%emt 0:00:08]} Kf4 {[%emt 0:00:02]} 75. Qf6# {[%emt 0:00:03]} 1-0